{"text_format":"2","workbook":"xlsx","n_sheets":15,"sheets":["Por Item - Elétrico","GRUPO 01 - Elétrico","GRUPO 02 - Elétrico","GRUPO 03 - Elétrico","GRUPO 04 - Elétrico","GRUPO 05 - Elétrico","GRUPO 06 - Elétrico","GRUPO 07 - Elétrico","GRUPO 08 - Hidráulica","GRUPO 09 - Hidráulica","GRUPO 10 - Hidráulica","GRUPO 11 – Marcenaria","GRUPO 12 - Ferramentas","Total Estimado","Total Estimado 2"],"not_rendered":{"charts":0,"images":1,"macros":0,"external_links":0,"defined_names":28,"comments":0,"pivot_tables":0},"unopened":[],"bounds":{"document_bytes":16777216,"sheet_cells":100000,"run_cost":"one","rows_first":2000,"rows_last":500,"rows_between":2000,"halvings":0,"cell_chars":16384,"cell_head_chars":4096},"cells_cut":0,"cells_raw":0,"read":"row_number_cap","date_system":"1900"}

{"sheet":"Por Item - Elétrico","index":0,"n_rows":1048469,"n_cols":22,"rows_kept":1048469,"cut":false,"hidden":false,"merged":[[17,1,17,9],[3,3,3,11],[4,3,4,11],[5,3,5,11],[6,3,6,11],[8,1,8,11],[9,1,9,11],[10,7,10,11]]}
[]
[]
[]
[null,null,null,"MINISTÉRIO DO DESENVOLVIMENTO REGIONAL - MDR"]
[null,null,null,"COMPANIHA DE DESENVOLVIMENTO DOS VALES DO SÃO FRANCISCO E DO PARNAÍBA - CODEVASF"]
[null,null,null,"ÁREA DE GESTÃO ADMINISTRATIVA E DE SUPORTE LOGÍSTICO"]
[null,null,null,"Gerência de Patrimônio, Materiais e Serviços Auxiliares"]
[]
[null,"ANEXO II - POR ITENS"]
[null,"Material de Manutenção Elétrica"]
[null,"Unidade: CODEVASF",{"$nulls":5},"Por Itens Elétricos e Hidráulicos"]
[null,"Item","Código CATMAT","Natureza Despesa","Descrição Sucinta","Unid.","Consumo  Anual Estimado","Consumo  Anual \nGeral","Preço unitário máximo","Preço unitário máximo\n2015","Preço\nUnitário REGISTRADO 2016","Valor Global",null,"SEDE\nConsumo  Anual Estimado","1ª SR\nConsumo  Anual\nEstimado","2ª SR\nConsumo  Anual\nEstimado","3ª SR\nConsumo  Anual\nEstimado","4ª SR\nConsumo  Anual\nEstimado","5ª SR\nConsumo  Anual\nEstimado","6ª SR\nConsumo  Anual\nEstimado","7ª SR\nConsumo  Anual\nEstimado","8ª SR\nConsumo  Anual\nEstimado"]
[null,1,"BR0041629","30.90.30-26","Estabilizador de voltagem de 1000VA\nCapacidade de potencia nominal 1 KVA, tensão alimentação entrada 110/220 volts, tensão de alimentação de saída 115 v, com no mínimo 4 tomadas.\nGarantia de 1 ano.","UN",180,{"$f":"SUM(G13:G13)","v":180},396.49,null,null,{"$f":"H13*I13","v":71368.2},null,{"$f":"G13*I13","v":71368.2}]
[null,{"$f":"B13+1","v":2},"BR0231995","30.90.30-26","Estabilizador de voltagem de 2000VA\nCapacidade de potencia nominal 2 KVA, tensão alimentação entrada 110/220 volts, tensão de alimentação de saída 115 v, com no mínimo 4 tomadas.\nGarantia de 1 ano.","UN",180,{"$f":"SUM(G14:G14)","v":180},{"$f":"(136.9+173.9+143.9)/3","v":151.56666666666669},null,null,{"$f":"H14*I14","v":27282.000000000004},null,{"$f":"G14*I14","v":27282.000000000004}]
[null,{"$f":"B14+1","v":3},"BR0331262","30.90.30-26","NOBREAK\nPotência nominal 1400VA / 980 Watts (Fator de potência = 0,7).\nTensão de entrada: 115V / 220V – Bivolt.\nTensão de saída: 115V.\nPossui 2 baterias internas de 12V x 7Ah.\nPossui mínimo 5 tomadas de saída.\nInterativo com regulação ON LINE.\nEstabilizador com 4 estágios de regulação.\nMicro processado com tecnologia RISC de alta velocidade com memória Flash.\nFunção TRUE RMS.\nAuto teste: ao ser ligado, o equipamento autoexecuta uma rotina de testes em seus circuitos internos.\nGerenciador de Baterias para informar quando a bateria precisa ser substituída.\nRecarregador Strong Charger para permite a recarga das baterias mesmo com níveis muito baixos de carga. E conector do tipo engate rápido para expansão de autonomia.\nInversor sincronizado com a rede (PLL).\nForma de onda senoidal por aproximação: retangular PWM controle de largura e amplitude.\nPossui DC Start para permitir ser ligado na ausência de rede elétrica.\nLeds no painel frontal indicam as condições (status) do nobreak, como: modo rede, modo inversor/bateria, final de autonomia, subtensão, sobretensão, baterias em carga.\nPossui Alarme audiovisual intermitente para queda de rede e fim do tempo de autonomia.\nPossui Porta fusível externo com unidade reserva.","unid.",50,{"$f":"SUM(G15:G15)","v":50},368.97,null,null,{"$f":"I15*H15","v":18448.5},null,{"$f":"G15*I15","v":18448.5}]
[null,{"$f":"B15+1","v":4},"BR0429945","30.90.30-26","Válvula de mictório sensor embutir, inox polido, elétrico 110/220V – 12Vcc, regulador de vazão 6 litros/min. marca/fabricante de referência Draco Eletrônica Indústria e Comércio Eireli - EPP.","Unid.",30,{"$f":"SUM(G16:G16)","v":30},{"$f":"(503.4+471.8+589)/3","v":521.4},null,null,{"$f":"H16*I16","v":15642},null,{"$f":"G16*I16","v":15642}]
[]
[null,"Total Geral",{"$nulls":9},{"$f":"SUM(L13:L17)","v":132740.70000000001},null,{"$f":"SUM(N13:N16)","v":132740.70000000001},0,0,0,0,0,0,0,0]
[]
[]
[{"$nulls":13},{"$f":"SUM(N18:V18)","v":132740.70000000001}]
{"$rows_empty":1048447}
[{"$nulls":4},"srpeletrico2019"]

{"sheet":"GRUPO 01 - Elétrico","index":1,"n_rows":1048566,"n_cols":39,"rows_kept":1048566,"cut":false,"hidden":false,"merged":[[34,1,34,9],[3,3,3,11],[4,3,4,11],[5,3,5,11],[6,3,6,11],[8,1,8,11],[9,1,9,11],[10,8,10,11]]}
[]
[]
[]
[null,null,null,"MINISTÉRIO DO DESENVOLVIMENTO REGIONAL - MDR"]
[null,null,null,"COMPANIHA DE DESENVOLVIMENTO DOS VALES DO SÃO FRANCISCO E DO PARNAÍBA - CODEVASF"]
[null,null,null,"ÁREA DE GESTÃO ADMINISTRATIVA E DE SUPORTE LOGÍSTICO"]
[null,null,null,"Gerência de Patrimônio, Materiais e Serviços Auxiliares"]
[{"$nulls":8},"__"]
[null,"ANEXO II - GRUPO: 01"]
[null,"Material de Manutenção Elétrica"]
[null,"Unidade: CODEVASF",{"$nulls":6},"GRUPO 01 - Elétrico"]
[null,"Item","Código CATMAT","Natureza Despesa","Descrição Sucinta","Unid.","Consumo  Anual Estimado","Consumo  Anual \nGeral","Preço unitário máximo","Preço unitário máximo\n2015","Preço\nUnitário REGISTRADO 2016","Valor Global",null,"SEDE\nConsumo  Anual Estimado","1ª SR\nConsumo  Anual\nEstimado","2ª SR\nConsumo  Anual\nEstimado","3ª SR\nConsumo  Anual\nEstimado","4ª SR\nConsumo  Anual\nEstimado","5ª SR\nConsumo  Anual\nEstimado","6ª SR\nConsumo  Anual\nEstimado","7ª SR\nConsumo  Anual\nEstimado","8ª SR\nConsumo  Anual\nEstimado"]
[null,{"$f":"'Por Item - Elétrico'!$B$16+1","v":5},"BR0411269","30.90.30-26","Acoplador 20mm x 10mm para uso em Sistema X.\nMarca:equivalente ou superior à Pial Legrand.","Unid.",200,{"$f":"SUM(G13:G13)","v":200},{"$f":"(8.3+10.5+9.97)/3","v":9.5900000000000016},null,null,{"$f":"H13*I13","v":1918.0000000000002},null,{"$f":"G13*I13","v":1918.0000000000002}]
[null,{"$f":"B13+1","v":6},"BR0376467","30.90.30-26","Adaptador, tensão nominal 127/220, de um lado tomada 2P+T E universal, do outro plugue, padrão brasileiro, branca, NBR 14136/2002, 690660. (Do padrão  novo para o  antigo)\nMarca: equivalente ou superior à PIAL.","Unid.",240,240,4.57,null,null,{"$f":"H14*I14","v":1096.8000000000002},null,{"$f":"I14*G14","v":1096.8000000000002}]
[null,7," BR0395739","30.90.30-26","Adaptador, tensão nominal 127/220, tipo tomada 2P+T, corrente nominal 20, do padrão antigo para o novo, material termoplástico, normas técnicas NBR 14136, referência cód 64119, potência nominal 1905/3300\nMarca: equivalente ou superior à PIAL.","Unid.",240,240,{"$f":"(12+6.67+12)/3","v":10.223333333333334},null,null,2453.6000000000004,null,2453.6000000000004]
[null,8,"BR0243116","30.90.30-26","Caixa passagem, material PVC rígido, tipo embutir, comprimento  4 polegadas, largura 4 polegada, cor amarela. \nMarca:  equivalente ou superior à Tigre..","Unid.",144,144,2.25,null,null,324,null,324]
[null,9,"BR0288845","30.90.30-26","Canaleta 110mm x 20 mm para uso em Sistema X.\nCom 2 Metros de comprimento\nMarca:equivalente ou superior à Pial Legrand. (BR0368896) ","Unid.",500,500,4.95,null,null,2475,null,2475]
[null,10,"BR0333941","30.90.30-26","Canaleta 20mm x 10 mm para uso em Sistema X.\nCom 2 Metros de comprimento\nMarca:equivalente ou superior à Pial Legrand.(BR0333941) (BR0379037)","Unid.",250,250,{"$f":"(36.32+17.57+18.9)/3","v":24.263333333333332},null,null,6065.833333333333,null,6065.833333333333]
[null,11,"BR0430915","30.90.30-26","Canaleta 32mm x 12,5 mm para uso em Sistema X. \nCom 2 Metros de comprimento\nMarca:equivalente ou superior à Pial Legrand. (BR0430915)","Unid.",100,100,24.96,null,null,2496,null,2496]
[null,12,"BR0389689","30.90.30-26","Canaleta 50mm x 20 mm para uso em Sistema X.\nCom 2 Metros de comprimento\nMarca:equivalente ou superior à Pial Legrand. ","Unid.",100,100,{"$f":"(31.2+18.9+17.57)/3","v":22.556666666666661},null,null,2255.6666666666661,null,2255.6666666666661]
[null,13,"BR0428548","30.90.30-26","Cotovelo de 90º, 20mm x 10mm para uso em Sistema X. \nMarca:  equivalente ou superior à Pial Legrand.","Unid.",250,250,1.79,null,null,447.5,null,447.5]
[null,14,"BR0380225","30.90.30-26","Cotovelo interno de 90º,  20mm x 10mm para uso em Sistema X.\nMarca:equivalente ou superior à Pial Legrand. ","Unid.",250,250,2.25,null,null,562.5,null,562.5]
[null,15,"BR0231487","30.90.30-26","Derivação em T 20mm x 10mm para uso em Sistema X.\nMarca:equivalente ou superior à Pial Legrand.","Unid.",200,200,4.49,null,null,898,null,898]
[null,16,"BR0344875","30.90.30-26","Luva 20mm x 10mm para uso em Sistema X.\nMarca:equivalente ou superior à Pial Legrand.","Unid.",200,200,0.98,null,null,196,null,196]
[null,17,"BR0244029","30.90.30-26","Tampa de extremidade sistema X, medindo 20mm X 10mm e fabricado em termoplástico na cor branco","Unid.",100,100,2.65,null,null,265,null,265]
[null,18,"BR0313047","30.90.30-26","Fita isolante elétrica, material básico PVC anti-chama, cor preta, comprimento 20 m, largura 19 mm","UN",250,250,8.02,null,null,2005,null,2005]
[null,19,"BR0355316","33.90.30-26","Interruptor de embutir, duas sessões, conjugado com tomada ","unid.",20,20,{"$f":"(17.55+19.76+12)/3","v":16.436666666666667},null,null,328.73333333333335,null,328.73333333333335]
[null,20,"BR0337065","33.90.30-26","Interruptor de embutir, três sessões","unid.",20,20,{"$f":"(19.8+22.05+21.66)/3","v":21.17},null,null,423.40000000000003,null,423.40000000000003]
[null,21,"BR0418691","33.90.30-26","Interruptor de embutir, uma sessão","unid.",20,20,{"$f":"(6.2+3.99+5.99)/3","v":5.3933333333333335},null,null,107.86666666666667,null,107.86666666666667]
[null,22,"BR0240093","33.90.30-26","Interruptor de embutir, uma sessão, conjugado com tomada","unid.",10,10,4.5199999999999996,null,null,45.199999999999996,null,45.199999999999996]
[null,23,"BR0212380","30.90.30-26","Interruptor de sobrepor 01 seções completo, corrente nominal 10 A, composto de tampa, miolo, caixa padrão de sobrepor com 4 saidas de 20mm + 2 saidas de 40mm, parafuso, linha classe A - TIPO SISTEMA X.\nMarca:  equivalente ou superior à Pial Legrand.","Unid.",180,180,{"$f":"(7.88+9.26+7.98)/3","v":8.3733333333333331},null,null,1507.2,null,1507.2]
[null,24,"BR0212387","30.90.30-26","Interruptor de sobrepor 02 seções completo, corrente nominal 10 A, composto de tampa, miolo, caixa padrao de sobrepor com 4 saidas de 20mm + 2 saidas de 40mm, parafuso, linha classe A - TIPO SISTEMA X.\nMarca:  equivalente ou superior à Pial Legrand.","Unid.",180,180,{"$f":"(8.55+8.46+7.13)/3","v":8.0466666666666669},null,null,1448.4,null,1448.4]
[null,25,"BR0331656","30.90.30-26","Interruptor de sobrepor 03 seções completo, corrente nominal 10 A, composto de tampa, miolo, caixa padrão de sobrepor com 4 saidas de 20mm + 2 saidas de 40mm, parafuso, linha classe A - TIPO SISTEMA X.\nMarca:  equivalente ou superior à Pial Legrand.","Unid.",120,120,14.9,null,null,1788,null,1788]
[]
[null,"Total Geral",{"$nulls":9},{"$f":"SUM(L13:L34)","v":29107.700000000004},null,{"$f":"SUM(N13:N34)","v":29107.700000000004},0,0,0,0,0,0,0,0]
[]
[]
[]
[{"$nulls":13},{"$f":"SUM(N35:V35)","v":29107.700000000004}]
{"$rows_empty":1048478}
[{"$nulls":4},"srpeletrico2019"]
{"$rows_empty":34}
[{"$nulls":27},"Grupos Materias Elétricos"]
[{"$nulls":27},"Grupo","SEDE","1ª SR","2ª SR","3ª SR","4ª SR","5ª SR","6ª SR","7ª SR","8ª SR"]
[{"$nulls":27},1,{"$f":"N35","v":29107.700000000004},0,0,0,0,0,0,0,0,null,{"$f":"SUM(AC1048555:AK1048555)","v":29107.700000000004}]
[{"$nulls":27},2,{"$f":"'GRUPO 02 - Elétrico'!N24","v":51081.366666666669},{"$f":"'GRUPO 02 - Elétrico'!O24","v":0},{"$f":"'GRUPO 02 - Elétrico'!P24","v":0},{"$f":"'GRUPO 02 - Elétrico'!Q24","v":0},{"$f":"'GRUPO 02 - Elétrico'!R24","v":0},{"$f":"'GRUPO 02 - Elétrico'!S24","v":0},{"$f":"'GRUPO 02 - Elétrico'!T24","v":0},{"$f":"'GRUPO 02 - Elétrico'!U24","v":0},{"$f":"'GRUPO 02 - Elétrico'!V24","v":0},null,{"$f":"SUM(AC1048556:AK1048556)","v":51081.366666666669}]
[{"$nulls":27},3,{"$f":"'GRUPO 03 - Elétrico'!N21","v":30757.666666666668},{"$f":"'GRUPO 03 - Elétrico'!O21","v":0},{"$f":"'GRUPO 03 - Elétrico'!P21","v":0},{"$f":"'GRUPO 03 - Elétrico'!Q21","v":0},{"$f":"'GRUPO 03 - Elétrico'!R21","v":0},{"$f":"'GRUPO 03 - Elétrico'!S21","v":0},{"$f":"'GRUPO 03 - Elétrico'!T21","v":0},{"$f":"'GRUPO 03 - Elétrico'!U21","v":0},{"$f":"'GRUPO 03 - Elétrico'!V21","v":0},null,30757.666666666668]
[{"$nulls":27},4,{"$f":"'GRUPO 04 - Elétrico'!N20","v":22646.433333333331},{"$f":"'GRUPO 04 - Elétrico'!O20","v":{"$error":"#REF!"}},{"$f":"'GRUPO 04 - Elétrico'!P20","v":{"$error":"#REF!"}},{"$f":"'GRUPO 04 - Elétrico'!Q20","v":{"$error":"#REF!"}},{"$f":"'GRUPO 04 - Elétrico'!R20","v":{"$error":"#REF!"}},{"$f":"'GRUPO 04 - Elétrico'!S20","v":{"$error":"#REF!"}},{"$f":"'GRUPO 04 - Elétrico'!T20","v":{"$error":"#REF!"}},{"$f":"'GRUPO 04 - Elétrico'!U20","v":{"$error":"#REF!"}},{"$f":"'GRUPO 04 - Elétrico'!V20","v":{"$error":"#REF!"}},null,{"$error":"#REF!"}]
[{"$nulls":27},5,{"$f":"'GRUPO 05 - Elétrico'!N16","v":53205.599999999999},{"$f":"'GRUPO 05 - Elétrico'!O16","v":0},{"$f":"'GRUPO 05 - Elétrico'!P16","v":0},{"$f":"'GRUPO 05 - Elétrico'!Q16","v":0},{"$f":"'GRUPO 05 - Elétrico'!R16","v":0},{"$f":"'GRUPO 05 - Elétrico'!S16","v":0},{"$f":"'GRUPO 05 - Elétrico'!T16","v":0},{"$f":"'GRUPO 05 - Elétrico'!U16","v":0},{"$f":"'GRUPO 05 - Elétrico'!V16","v":0},null,53205.599999999999]
[{"$nulls":27},6,{"$f":"'GRUPO 06 - Elétrico'!N21","v":30199.5},{"$f":"'GRUPO 06 - Elétrico'!O21","v":0},{"$f":"'GRUPO 06 - Elétrico'!P21","v":0},{"$f":"'GRUPO 06 - Elétrico'!Q21","v":0},{"$f":"'GRUPO 06 - Elétrico'!R21","v":0},{"$f":"'GRUPO 06 - Elétrico'!S21","v":0},{"$f":"'GRUPO 06 - Elétrico'!T21","v":0},{"$f":"'GRUPO 06 - Elétrico'!U21","v":0},{"$f":"'GRUPO 06 - Elétrico'!V21","v":0},null,30199.5]
[{"$nulls":27},7,{"$f":"'GRUPO 07 - Elétrico'!N22","v":45611.64},{"$f":"'GRUPO 07 - Elétrico'!O22","v":0},{"$f":"'GRUPO 07 - Elétrico'!P22","v":0},{"$f":"'GRUPO 07 - Elétrico'!Q22","v":0},{"$f":"'GRUPO 07 - Elétrico'!R22","v":0},{"$f":"'GRUPO 07 - Elétrico'!S22","v":0},{"$f":"'GRUPO 07 - Elétrico'!T22","v":0},{"$f":"'GRUPO 07 - Elétrico'!U22","v":0},{"$f":"'GRUPO 07 - Elétrico'!V22","v":0},null,45611.64]
[]
[{"$nulls":27},"Total",{"$f":"SUM(AC1048555:AC1048562)","v":262609.90666666668},{"$f":"SUM(AD1048555:AD1048562)","v":{"$error":"#REF!"}},{"$error":"#REF!"},{"$error":"#REF!"},{"$error":"#REF!"},{"$error":"#REF!"},{"$error":"#REF!"},{"$error":"#REF!"},{"$error":"#REF!"}]
[]
[{"$nulls":38},{"$f":"SUM(AM1048555:AM1048564)","v":{"$error":"#REF!"}}]
[{"$nulls":28},{"$f":"SUM(AC1048563:AK1048563)","v":{"$error":"#REF!"}}]

{"sheet":"GRUPO 02 - Elétrico","index":2,"n_rows":1048507,"n_cols":22,"rows_kept":1048507,"cut":false,"hidden":false,"merged":[[23,1,23,9],[3,3,3,11],[4,3,4,11],[5,3,5,11],[6,3,6,11],[9,1,9,11],[8,1,8,11],[10,8,10,11]]}
[]
[]
[]
[null,null,null,"MINISTÉRIO DO DESENVOLVIMENTO REGIONAL - MDR"]
[null,null,null,"COMPANIHA DE DESENVOLVIMENTO DOS VALES DO SÃO FRANCISCO E DO PARNAÍBA - CODEVASF"]
[null,null,null,"ÁREA DE GESTÃO ADMINISTRATIVA E DE SUPORTE LOGÍSTICO"]
[null,null,null,"Gerência de Patrimônio, Materiais e Serviços Auxiliares"]
[]
[null,"ANEXO II - GRUPO: 02"]
[null,"Material de Manutenção Elétrica"]
[null,"Unidade: CODEVASF",{"$nulls":6},"GRUPO 02 - Elétrico"]
[null,"Item","Código CATMAT","Natureza Despesa","Descrição Sucinta","Unid.","Consumo  Anual Estimado","Consumo  Anual \nGeral","Preço unitário máximo","Preço unitário máximo\n2015","Preço\nUnitário REGISTRADO 2016","Valor Global",null,"SEDE\nConsumo  Anual Estimado","1ª SR\nConsumo  Anual\nEstimado","2ª SR\nConsumo  Anual\nEstimado","3ª SR\nConsumo  Anual\nEstimado","4ª SR\nConsumo  Anual\nEstimado","5ª SR\nConsumo  Anual\nEstimado","6ª SR\nConsumo  Anual\nEstimado","7ª SR\nConsumo  Anual\nEstimado","8ª SR\nConsumo  Anual\nEstimado"]
[null,{"$f":"'GRUPO 01 - Elétrico'!B33+1","v":26},"BR0352736","30.90.30-26","Cabo elétrico flexível, 750 v, pp, mole, 3 x 4 mm2, cobre, pvc anti-chama, pvc,  de conformidade INMETRO, norma aplicável NBR 13249\nBobina com 500 metros\nMarca:  equivalente ou superior à Pirelli.","Metros",2000,{"$f":"SUM(G13:G13)","v":2000},11.23,null,null,{"$f":"H13*I13","v":22460},null,{"$f":"I13*G13","v":22460}]
[null,{"$f":"B13+1","v":27},"BR0394031","30.90.30-26","Cabo elétrico flexível, PP 2 X 1.50 mm, 750V, material do condutor cobre, anti-chama, com isolamento em pvc - CLORETO DE POLIVINILA\nCom certificação INMETRO / NBR 13249\nMarca: equivalente ou superior à Megatron.                                                                                               ","Rolo 100 metros",8,8,{"$f":"(56.9+72.9+59)/3","v":62.933333333333337},null,null,503.4666666666667,null,503.4666666666667]
[null,28,"BR0342939","30.90.30-26","Cabo elétrico flexível, PP 2 X 2.50 mm, 750V, material do condutor cobre, com isolamento em pvc\nCom certificação INMETRO / NBR 13249\nMarca: equivalente ou superior à Megatron.                                                                                                                                                                                                                          ","Rolo 100 metros",10,10,{"$f":"(72.07+86.83+65.97)/3","v":74.956666666666663},null,null,749.56666666666661,null,749.56666666666661]
[null,29,"BR0409524","30.90.30-26","Cabo elétrico flexível, PP 3 X 1.50 mm, 750V, material do condutor cobre,anti-chama, com isolamento em pvc -\nCom certificação INMETRO / NBR 13249\nMarca: equivalente ou superior à Megatron.                                                                                               ","Rolo 100 metros",8,8,{"$f":"1.9*100","v":190},null,null,1520,null,1520]
[null,30,"BR0332928","30.90.30-26","Cabo elétrico flexível, PP 3 X 2.50 mm, 750V, material do condutor cobre, anti-chama, com isolamento em pvc\nCom certificação INMETRO / NBR 13249\nMarca: equivalente ou superior à Pirelli.","Metros",1000,1000,{"$f":"267.5/100","v":2.6749999999999998},null,null,2675,null,2675]
[null,31,"BR0389765","30.90.30-17","Cabo rede computador, material revestimento: pvc - cloreto de polivinila, material condutor: cobre, bitola condutor: 24 awg, tipo condutor: trançado, tipo cabo: utp 4 pares padrão tia 568a, cor: azul, amarela ou cinza, categoria: 6","Caixa com 305 metros",10,10,{"$f":"(363.36+459+251.2)/3","v":357.8533333333333},null,null,3578.5333333333328,null,3578.5333333333328]
[null,32,"BR0239472","30.90.30-26","Fio elétrico flexível, paralelo, bitola 2 x 1,5 mm, material condutor cobre, material isolamento PVC\nMarca:  equivalente ou superior à Pirelli.","Rolo 100 metros",12,12,{"$f":"0.95*100","v":95},null,null,1140,null,1140]
[null,33,"BR0238853","30.90.30-26","Fio elétrico flexível, paralelo, bitola 2 x 2,5 mm, material condutor cobre, material isolamento PVC\nMarca:  equivalente ou superior à Pirelli.","Rolo 100 metros",12,12,409.9,null,null,4918.7999999999993,null,4918.7999999999993]
[null,34,"BR0224596","30.90.30-26","Fio flexível, 2,5mm,  para tensões de até 450/750 V., conforme NBR NM 247-3\n(cores: Vermelho, preto, branco, azul, amarelo e verde)\nMarca:  equivalente ou superior à Pirelli.","Rolo 100 metros",180,180,56,null,null,10080,null,10080]
[null,35,"BR0224597","30.90.30-26","Fio flexível, 4,0 mm, para tensões de até 450/750 V.\nCom certificação INMETRO / NBR 13249\n(cores: Vermelho, preto, branco, azul  e verde)\nMarca:  equivalente ou superior à Pirelli.","Rolo 100 metros",24,24,144,null,null,3456,null,3456]
[]
[null,"Total Geral",{"$nulls":9},{"$f":"SUM(L13:L23)","v":51081.366666666669},null,{"$f":"SUM(N13:N23)","v":51081.366666666669},0,0,0,0,0,0,0,0]
[]
[]
[]
[{"$nulls":13},{"$f":"SUM(N24:V24)","v":51081.366666666669}]
{"$rows_empty":1048478}
[{"$nulls":4},"srpeletrico2019"]

{"sheet":"GRUPO 03 - Elétrico","index":3,"n_rows":1048504,"n_cols":22,"rows_kept":1048504,"cut":false,"hidden":false,"merged":[[20,1,20,9],[10,5,10,6],[3,3,3,11],[4,3,4,11],[5,3,5,11],[6,3,6,11],[8,1,8,11],[9,1,9,11],[10,8,10,11]]}
[]
[]
[]
[null,null,null,"MINISTÉRIO DO DESENVOLVIMENTO REGIONAL - MDR"]
[null,null,null,"COMPANIHA DE DESENVOLVIMENTO DOS VALES DO SÃO FRANCISCO E DO PARNAÍBA - CODEVASF"]
[null,null,null,"ÁREA DE GESTÃO ADMINISTRATIVA E DE SUPORTE LOGÍSTICO"]
[null,null,null,"Gerência de Patrimônio, Materiais e Serviços Auxiliares"]
[]
[null,"ANEXO II - GRUPO: 03"]
[null,"Material de Manutenção Elétrica"]
[null,"Unidade: CODEVASF",{"$nulls":6},"GRUPO 03 - Elétrico"]
[null,"Item","Código CATMAT","Natureza Despesa","Descrição Sucinta","Unid.","Consumo  Anual Estimado","Consumo  Anual \nGeral","Preço unitário máximo","Preço unitário máximo\n2015","Preço\nUnitário REGISTRADO 2016","Valor Global",null,"SEDE\nConsumo  Anual Estimado","1ª SR\nConsumo  Anual\nEstimado","2ª SR\nConsumo  Anual\nEstimado","3ª SR\nConsumo  Anual\nEstimado","4ª SR\nConsumo  Anual\nEstimado","5ª SR\nConsumo  Anual\nEstimado","6ª SR\nConsumo  Anual\nEstimado","7ª SR\nConsumo  Anual\nEstimado","8ª SR\nConsumo  Anual\nEstimado"]
[null,{"$f":"'GRUPO 02 - Elétrico'!$B$22+1","v":36},"BR0261260","30.90.30-26","Lâmpada fluorescente compacta, potência 15 W, comprimento 140 mm, diâmetro  aproximadamente de 52 cm, tensão 220/240 V, características adicionais                                                                                                                    ","Unid.",180,{"$f":"SUM(G13:G13)","v":180},{"$f":"(8.9+8.9+9.84)/3","v":9.2133333333333329},null,null,{"$f":"H13*I13","v":1658.3999999999999},null,{"$f":"I13*G13","v":1658.3999999999999}]
[null,{"$f":"B13+1","v":37},"BR0245112","30.90.30-26","Lâmpada fluorescente compacta, tipo base Edson-27, potência 30, tensão 220","Unid.",60,60,15.54,null,null,932.4,null,932.4]
[null,38,"BR0349219","30.90.30-26","Lâmpada fluorescente compacta, tipo base eletrônica, potência 45 W, tensão 220V","UN",120,120,27.7,null,null,3324,null,3324]
[null,39,"BR0234117","30.90.30-26","Lâmpada Fluorescente HO 110, tubular, base bipino, potência 110 W, comprimento 2.400 mm, tensão alimentação 220V                    ","Unid.",500,500,{"$f":"(24.12+27.5+44)/3","v":31.873333333333335},"pesquisar SIASG ou internet",null,15936.666666666668,null,15936.666666666668]
[null,40,"BR0256287","30.90.30-26","Lâmpada fluorescente tubular, base bipino, potência 20 W, tensão alimentação 220 V","Unid.",500,500,{"$f":"(9.5+12.36+6.82)/3","v":9.56},null,null,4780,null,4780]
[null,41,"BR0232988","30.90.30-26","Lâmpada fluorescente, tubular, base bipino, potência 40 W, tensão alimentação 220 V","Unid.",500,500,7.04,null,null,3520,null,3520]
[null,42,"BR0150260","30.90.30-26","Luminária tipo arandela (vulgarmente denominada tartaruga), a prova de tempo, confeccionada em aço e Vidro.","Unid.",10,10,60.62,null,null,606.19999999999993,null,606.19999999999993]
[]
[null,"Total Geral",{"$nulls":9},{"$f":"SUM(L13:L20)","v":30757.666666666668},null,{"$f":"SUM(N13:N20)","v":30757.666666666668},0,0,0,0,0,0,0,0]
[]
[]
[]
[{"$nulls":13},{"$f":"SUM(N21:V21)","v":30757.666666666668}]
{"$rows_empty":1048478}
[{"$nulls":4},"srpeletrico2019"]

{"sheet":"GRUPO 04 - Elétrico","index":4,"n_rows":1048503,"n_cols":22,"rows_kept":1048503,"cut":false,"hidden":false,"merged":[[10,5,10,6],[19,1,19,9],[3,3,3,11],[4,3,4,11],[5,3,5,11],[6,3,6,11],[8,1,8,11],[9,1,9,11],[10,8,10,11]]}
[]
[]
[]
[null,null,null,"MINISTÉRIO DO DESENVOLVIMENTO REGIONAL - MDR"]
[null,null,null,"COMPANIHA DE DESENVOLVIMENTO DOS VALES DO SÃO FRANCISCO E DO PARNAÍBA - CODEVASF"]
[null,null,null,"ÁREA DE GESTÃO ADMINISTRATIVA E DE SUPORTE LOGÍSTICO"]
[null,null,null,"Gerência de Patrimônio, Materiais e Serviços Auxiliares"]
[]
[null,"ANEXO II - GRUPO: 04"]
[null,"Material de Manutenção Elétrica"]
[null,"Unidade: CODEVASF",{"$nulls":6},"GRUPO 04 - Elétrico"]
[null,"Item","Código CATMAT","Natureza Despesa","Descrição Sucinta","Unid.","Consumo  Anual Estimado","Consumo  Anual \nGeral","Preço unitário máximo","Preço unitário máximo\n2015","Preço\nUnitário REGISTRADO 2016","Valor Global",null,"SEDE\nConsumo  Anual Estimado","1ª SR\nConsumo  Anual\nEstimado","2ª SR\nConsumo  Anual\nEstimado","3ª SR\nConsumo  Anual\nEstimado","4ª SR\nConsumo  Anual\nEstimado","5ª SR\nConsumo  Anual\nEstimado","6ª SR\nConsumo  Anual\nEstimado","7ª SR\nConsumo  Anual\nEstimado","8ª SR\nConsumo  Anual\nEstimado"]
[null,{"$f":"'GRUPO 03 - Elétrico'!$B$19+1","v":43},"BR0441137","30.90.30-26","Lâmpada Led Bulbo 30W, tensão de entrada: bivolt ( 110/220 v ), consumo de energia: 30 w, temperatura de cor: 6000- 6500 k(frio), ângulo de feixe: 30 ° / 60 °, índice de reprodução de cor (irc):> 80, material: plástico, temperatura ambiente: -20 ~ 40 ° c, vida útil: até 50 vezes maior comparado a outras, não emite radiação infravermelha nem ultravioleta","Unid.",200,{"$f":"SUM(G13:G13)","v":200},44.73,null,null,{"$f":"H13*I13","v":8946},null,{"$f":"I13*G13","v":8946},{"$f":"#REF!*I13","v":{"$error":"#REF!"}},{"$f":"#REF!*I13","v":{"$error":"#REF!"}},{"$f":"#REF!*I13","v":{"$error":"#REF!"}},{"$f":"#REF!*I13","v":{"$error":"#REF!"}},{"$f":"#REF!*I13","v":{"$error":"#REF!"}},{"$f":"#REF!*I13","v":{"$error":"#REF!"}},{"$f":"#REF!*I13","v":{"$error":"#REF!"}},{"$f":"#REF!*I13","v":{"$error":"#REF!"}}]
[null,{"$f":"B13+1","v":44},"BR0435130","30.90.30-26","Lâmpada LED Bulbo 60W,  tensão: Bivolt, consumo: 60w, Potência Nominal 12  tipo BASE E-27, TIPO BULBO A60 GLOBAL LEITOSO, FREQUÊNCIA NOMINAL 60.                                         ","Unid.",50,50,7.34,null,null,367,null,367,{"$f":"#REF!*I14","v":{"$error":"#REF!"}},{"$f":"#REF!*I14","v":{"$error":"#REF!"}},{"$f":"#REF!*I14","v":{"$error":"#REF!"}},{"$f":"#REF!*I14","v":{"$error":"#REF!"}},{"$f":"#REF!*I14","v":{"$error":"#REF!"}},{"$f":"#REF!*I14","v":{"$error":"#REF!"}},{"$f":"#REF!*I14","v":{"$error":"#REF!"}},{"$f":"#REF!*I14","v":{"$error":"#REF!"}}]
[null,{"$f":"B14+1","v":45},"BR0446038","30.90.30-26","Lâmpada Led Bulbo 7W, tensão de entrada: bivolt (110/220 v), consumo de energia: 7 w, temperatura de cor: 6000- 6500 k(frio), ângulo de feixe: 30 ° / 60 °, índice de reprodução de cor (irc):> 80, material: plástico, temperatura ambiente: -20 ~ 40 ° c, vida útil: até 50 vezes maior comparado a outras, não emite radiação infravermelha nem ultravioleta","Unid.",200,200,6.42,null,null,1284,null,1284,{"$f":"#REF!*I15","v":{"$error":"#REF!"}},{"$f":"#REF!*I15","v":{"$error":"#REF!"}},{"$f":"#REF!*I15","v":{"$error":"#REF!"}},{"$f":"#REF!*I15","v":{"$error":"#REF!"}},{"$f":"#REF!*I15","v":{"$error":"#REF!"}},{"$f":"#REF!*I15","v":{"$error":"#REF!"}},{"$f":"#REF!*I15","v":{"$error":"#REF!"}},{"$f":"#REF!*I15","v":{"$error":"#REF!"}}]
[null,{"$f":"B15+1","v":46},"BR0437224","30.90.30-26","Lâmpada Led Tubular 18W, T8 120cm – LEITOSA, Cor: 6.500k (Branco Frio), Tensão: Bivolt , Consumo: 18w,Ângulo de iluminação: 120º, Luminosidade: 900 ~ 1300 Lumens, Durabilidade: 50,000 à 80,000 hs, Dimensão: 1200 X 28 mm, Não emite UV (Ultravioleta) e IR (Infra Vermelho)          ","Unid.",840,840,13,null,null,10920,null,10920,{"$f":"#REF!*I16","v":{"$error":"#REF!"}},{"$f":"#REF!*I16","v":{"$error":"#REF!"}},{"$f":"#REF!*I16","v":{"$error":"#REF!"}},{"$f":"#REF!*I16","v":{"$error":"#REF!"}},{"$f":"#REF!*I16","v":{"$error":"#REF!"}},{"$f":"#REF!*I16","v":{"$error":"#REF!"}},{"$f":"#REF!*I16","v":{"$error":"#REF!"}},{"$f":"#REF!*I16","v":{"$error":"#REF!"}}]
[null,{"$f":"B16+1","v":47},"BR0399271 ","30.90.30-26","Luz emergência, fixa à parede, com 30 lâmpadas de led de 3W, bivolt, recarregável, autonomia mínima de 12 horas, luz branca.\nMarca:equivalente ou superior àIntelbrás","Unid.",60,60,11.61,null,null,696.59999999999991,null,696.59999999999991,{"$f":"#REF!*I17","v":{"$error":"#REF!"}},{"$f":"#REF!*I17","v":{"$error":"#REF!"}},{"$f":"#REF!*I17","v":{"$error":"#REF!"}},{"$f":"#REF!*I17","v":{"$error":"#REF!"}},{"$f":"#REF!*I17","v":{"$error":"#REF!"}},{"$f":"#REF!*I17","v":{"$error":"#REF!"}},{"$f":"#REF!*I17","v":{"$error":"#REF!"}},{"$f":"#REF!*I17","v":{"$error":"#REF!"}}]
[null,{"$f":"B17+1","v":48},"BR0426514","33.90.30-16","Lâmpada LED bulbo 10 W, 220 V","unid.",50,50,{"$f":"(8+8.97+9)/3","v":8.6566666666666663},"pesquisar SIASG ou internet",null,432.83333333333331,null,432.83333333333331,{"$f":"#REF!*I18","v":{"$error":"#REF!"}},{"$f":"#REF!*I18","v":{"$error":"#REF!"}},{"$f":"#REF!*I18","v":{"$error":"#REF!"}},{"$f":"#REF!*I18","v":{"$error":"#REF!"}},{"$f":"#REF!*I18","v":{"$error":"#REF!"}},{"$f":"#REF!*I18","v":{"$error":"#REF!"}},{"$f":"#REF!*I18","v":{"$error":"#REF!"}},{"$f":"#REF!*I18","v":{"$error":"#REF!"}}]
[]
[null,"Total Geral",{"$nulls":9},{"$f":"SUM(L13:L19)","v":22646.433333333331},null,{"$f":"SUM(N13:N19)","v":22646.433333333331},{"$error":"#REF!"},{"$error":"#REF!"},{"$error":"#REF!"},{"$error":"#REF!"},{"$error":"#REF!"},{"$error":"#REF!"},{"$error":"#REF!"},{"$error":"#REF!"}]
[]
[]
[]
[{"$nulls":13},{"$f":"SUM(N20:V20)","v":{"$error":"#REF!"}}]
{"$rows_empty":1048478}
[{"$nulls":4},"srpeletrico2019"]

{"sheet":"GRUPO 05 - Elétrico","index":5,"n_rows":1048499,"n_cols":22,"rows_kept":1048499,"cut":false,"hidden":false,"merged":[[15,1,15,9],[10,5,10,6],[3,3,3,11],[4,3,4,11],[5,3,5,11],[6,3,6,11],[8,1,8,11],[9,1,9,11],[10,8,10,11]]}
[]
[]
[]
[null,null,null,"MINISTÉRIO DO DESENVOLVIMENTO REGIONAL - MDR"]
[null,null,null,"COMPANIHA DE DESENVOLVIMENTO DOS VALES DO SÃO FRANCISCO E DO PARNAÍBA - CODEVASF"]
[null,null,null,"ÁREA DE GESTÃO ADMINISTRATIVA E DE SUPORTE LOGÍSTICO"]
[null,null,null,"Gerência de Patrimônio, Materiais e Serviços Auxiliares"]
[]
[null,"ANEXO II - GRUPO: 05"]
[null,"Material de Manutenção Elétrica"]
[null,"Unidade: CODEVASF",{"$nulls":6},"GRUPO 05 - Elétrico"]
[null,"Item","Código CATMAT","Natureza Despesa","Descrição Sucinta","Unid.","Consumo  Anual Estimado","Consumo  Anual \nGeral","Preço unitário máximo","Preço unitário máximo\n2015","Preço\nUnitário REGISTRADO 2016","Valor Global",null,"SEDE\nConsumo  Anual Estimado","1ª SR\nConsumo  Anual\nEstimado","2ª SR\nConsumo  Anual\nEstimado","3ª SR\nConsumo  Anual\nEstimado","4ª SR\nConsumo  Anual\nEstimado","5ª SR\nConsumo  Anual\nEstimado","6ª SR\nConsumo  Anual\nEstimado","7ª SR\nConsumo  Anual\nEstimado","8ª SR\nConsumo  Anual\nEstimado"]
[null,{"$f":"'GRUPO 04 - Elétrico'!$B$18+1","v":49},"BR0441015","30.90.30-26","Lâmpada Led Tubular 36W, Modelo: T8 240 cm  LEITOSA, Cor: 6.500k (Branco Frio), quantidade de led: 96, Tensão: Bivolt, Consumo: 36w, Ângulo de iluminação: 120º, Luminosidade: 900 ~ 1300 Lumens, Durabilidade: 50,000 à 80,000 hs, Dimensão: 2400 X 28 mm, Não emite UV (Ultravioleta) e IR (Infra Vermelho)","Unid.",840,{"$f":"SUM(G13:G13)","v":840},53.94,null,null,{"$f":"H13*I13","v":45309.599999999999},null,{"$f":"I13*G13","v":45309.599999999999}]
[null,{"$f":"B13+1","v":50},"BR0437582","30.90.30-26","Lâmpada Led Tubular 9W, Modelo: T8 60cm – Leitosa, Cor: 6.500k (Branco Frio), Tensão: Bivolt , Consumo: 9w, Ângulo de iluminação: 120º, Luminosidade: 900 ~ 1300 Lumens, Durabilidade: 50,000 à 80,000 hs, Não emite UV (Ultravioleta) e IR (Infra Vermelho)","Unid.",840,{"$f":"SUM(G14:G14)","v":840},9.4,null,null,{"$f":"H14*I14","v":7896},null,{"$f":"I14*G14","v":7896}]
[]
[null,"Total Geral",{"$nulls":9},{"$f":"SUM(L13:L15)","v":53205.599999999999},null,{"$f":"SUM(N13:N15)","v":53205.599999999999},0,0,0,0,0,0,0,0]
[]
[]
[]
[{"$nulls":13},{"$f":"SUM(N16:V16)","v":53205.599999999999}]
{"$rows_empty":1048478}
[{"$nulls":4},"srpeletrico2019"]

{"sheet":"GRUPO 06 - Elétrico","index":6,"n_rows":1048504,"n_cols":22,"rows_kept":1048504,"cut":false,"hidden":false,"merged":[[20,1,20,9],[10,5,10,6],[3,3,3,11],[4,3,4,11],[5,3,5,11],[6,3,6,11],[8,1,8,11],[9,1,9,11],[10,8,10,11]]}
[]
[]
[]
[null,null,null,"MINISTÉRIO DO DESENVOLVIMENTO REGIONAL - MDR"]
[null,null,null,"COMPANIHA DE DESENVOLVIMENTO DOS VALES DO SÃO FRANCISCO E DO PARNAÍBA - CODEVASF"]
[null,null,null,"ÁREA DE GESTÃO ADMINISTRATIVA E DE SUPORTE LOGÍSTICO"]
[null,null,null,"Gerência de Patrimônio, Materiais e Serviços Auxiliares"]
[]
[null,"ANEXO II - GRUPO: 06"]
[null,"Material de Manutenção Elétrica"]
[null,"Unidade: CODEVASF",{"$nulls":6},"GRUPO 06 - Elétrico"]
[null,"Item","Código CATMAT","Natureza Despesa","Descrição Sucinta","Unid.","Consumo  Anual Estimado","Consumo  Anual \nGeral","Preço unitário máximo","Preço unitário máximo\n2015","Preço\nUnitário REGISTRADO 2016","Valor Global",null,"SEDE\nConsumo  Anual Estimado","1ª SR\nConsumo  Anual\nEstimado","2ª SR\nConsumo  Anual\nEstimado","3ª SR\nConsumo  Anual\nEstimado","4ª SR\nConsumo  Anual\nEstimado","5ª SR\nConsumo  Anual\nEstimado","6ª SR\nConsumo  Anual\nEstimado","7ª SR\nConsumo  Anual\nEstimado","8ª SR\nConsumo  Anual\nEstimado"]
[null,{"$f":"'GRUPO 05 - Elétrico'!B14+1","v":51},"BR0434161","30.90.30-26","Refletor LED 100W, Potência: 100 W, Dimensões: 370 mm x 290 mm x 120 mm, Certificação: CE, Ângulo: 120º , A prova d’água: IP65, Voltagem: AC 85-265V (bivolt), Vida útil: Até 50.000 horas, Cor da luz: Branco 6000k +- 200k","Unid.",50,{"$f":"SUM(G13:G13)","v":50},75,null,null,{"$f":"H13*I13","v":3750},null,{"$f":"I13*G13","v":3750}]
[null,{"$f":"B13+1","v":52},"BR0360131","30.90.30-26","Refletor LED 30W, Potência: 30 W, Dimensões: 230 mm x 200 mm x 11 mm, Certificação: CE, Ângulo: 120º, A prova d’água: IP65, Voltagem: AC 85-265V (bivolt), Vida útil: Até 50.000 horas, Cor da luz: Branco 6000k +- 200k","Unid.",50,50,{"$f":"(39.97+25.84+55.9)/3","v":40.57},null,null,{"$f":"H14*I14","v":2028.5},null,2028.5]
[null,53,"BR0434160","30.90.30-26","Refletor LED 50W, Potência: 50 W, Dimensões: 370 mm x 290 mm x 120 mm, Certificação: CE, Ângulo: 120º, A prova d’água: IP65, Voltagem: AC 85-265V (bivolt), Vida útil: Até 50.000 horas, Cor da luz: Branco 6000k +- 200k","Unid.",50,50,38.9,null,null,1945,null,1945]
[null,54,"BR0434162","30.90.30-26","Refletor, Alumínio blindado, LED COB (CHIP ON BOARD), 50 W, bivolt, IP65 (Tabela ingress protection), 120°, 6000/4000 K","Unid.",50,50,193.33,null,null,9666.5,null,9666.5]
[null,55,"BR0364621","30.90.30-26","Soquete anti-vibratório para lâmpada fluorescente em geral EXCETO T5, braquilite, com Dimensões: altura: 6 cm, largura: 2,5 cm, profundidade: 2 cm","Unid.",1000,1000,{"$f":"(2.41+3.5+4.65)/3","v":3.52},null,null,3520,null,3520]
[null,56,"BR0375077","30.90.30-26","Tomada, modelo universal 2P+T, formato corpo redondo, corrente nominal 15 A, tensão nominal 250, características adicionais caixa sobrepor 70mm X 70mm X 27mm, para  instalação elétric, com parafusos.\nLinha classe A - TIPO SISTEMA X. \nConforme norma ABNT NBR 14136","UN",400,400,23,null,null,9200,null,9200]
[null,57,"BR0367204","33.90.30-17","Spray para limpeza de contatos elétricos e eletrônicos (dielétrico) de secagem imediata; densidade: 0,660 – 0,670 com a função de remover os resíduos que prejudicam a condutividade nos contatos elétricos e eletrônicos, poeira e umidade e recuperar a condutividade nos contatos instantaneamente.","unid.",5,5,17.899999999999999,null,null,89.5,null,89.5]
[]
[null,"Total Geral",{"$nulls":9},{"$f":"SUM(L13:L20)","v":30199.5},null,{"$f":"SUM(N13:N20)","v":30199.5},0,0,0,0,0,0,0,0]
[]
[]
[]
[{"$nulls":13},{"$f":"SUM(N21:V21)","v":30199.5}]
{"$rows_empty":1048478}
[{"$nulls":4},"srpeletrico2019"]

{"sheet":"GRUPO 07 - Elétrico","index":7,"n_rows":1048505,"n_cols":22,"rows_kept":1048505,"cut":false,"hidden":false,"merged":[[10,5,10,6],[21,1,21,9],[3,3,3,11],[4,3,4,11],[5,3,5,11],[6,3,6,11],[8,1,8,11],[9,1,9,11],[10,8,10,11]]}
[]
[]
[]
[null,null,null,"MINISTÉRIO DO DESENVOLVIMENTO REGIONAL - MDR"]
[null,null,null,"COMPANIHA DE DESENVOLVIMENTO DOS VALES DO SÃO FRANCISCO E DO PARNAÍBA - CODEVASF"]
[null,null,null,"ÁREA DE GESTÃO ADMINISTRATIVA E DE SUPORTE LOGÍSTICO"]
[null,null,null,"Gerência de Patrimônio, Materiais e Serviços Auxiliares"]
[]
[null,"ANEXO II - GRUPO: 07"]
[null,"Material de Manutenção Elétrica"]
[null,"Unidade: CODEVASF",{"$nulls":6},"GRUPO 07 - Elétrico"]
[null,"Item","Código CATMAT","Natureza Despesa","Descrição Sucinta","Unid.","Consumo  Anual Estimado","Consumo  Anual \nGeral","Preço unitário máximo","Preço unitário máximo\n2015","Preço\nUnitário REGISTRADO 2016","Valor Global",null,"SEDE\nConsumo  Anual Estimado","1ª SR\nConsumo  Anual\nEstimado","2ª SR\nConsumo  Anual\nEstimado","3ª SR\nConsumo  Anual\nEstimado","4ª SR\nConsumo  Anual\nEstimado","5ª SR\nConsumo  Anual\nEstimado","6ª SR\nConsumo  Anual\nEstimado","7ª SR\nConsumo  Anual\nEstimado","8ª SR\nConsumo  Anual\nEstimado"]
[null,{"$f":"'GRUPO 06 - Elétrico'!$B$19+1","v":58},"BR0421088","30.90.30-26","Filtro linha, 110/220 v, 6 tomadas padrão nbr14136, seleção automática de voltagem, proteção contra surtos rede energia e telefonia, 60 hz, novo padrão nbr 14136:2002, pintura eletrostática a pó, display contator surto elétrico; fusível térmico.  ","Unid.",50,{"$f":"SUM(G13:G13)","v":50},22.54,null,null,{"$f":"H13*I13","v":1127},null,{"$f":"I13*G13","v":1127}]
[null,{"$f":"B13+1","v":59},"BR0291227","30.90.30-26","Filtro linha, tensão alimentação 110/220 V, potência máxima 1.000 W, quantidade saída 5 tomadas para computador, características adicionais cabo de força de aproximadamente 1,30 M","Unid.",72,72,19.52,null,null,{"$f":"H14*I14","v":1405.44},null,1405.44]
[null,{"$f":"B14+1","v":60},"BR0064831","30.90.30-26","Reator eletrônico, para lâmpada fluorescente HO (HIGH OUTPUT), 1  X 110 W,  110/220 V,  em conformidade com as normas (NBR nº 14417 e 14418)","Unid.",180,180,13.85,null,null,{"$f":"H15*I15","v":2493},null,2493]
[null,{"$f":"B15+1","v":61},"BR0240105","30.90.30-26","Reator eletrônico, para lâmpada fluorescente HO (HIGH OUTPUT), 2  X 110 W,  110/220 V","Unid.",300,300,{"$f":"(96.3+91.93+65.41)/3","v":84.546666666666667},null,null,25364,null,25364]
[null,62,"BR0418057","30.90.30-26","Reator lâmpada fluorescente, instantânea, eletrônico, potência nominal 20 W, tensão nominal 127/220 V, ALTO, quantidade 1 lâmpada, selo INMETRO garantia 2 anos, T10                                                                  ","Unid.",180,180,11,null,null,1980,null,1980]
[null,63,"BR0405815","30.90.30-26","Reator lâmpada fluorescente, instantânea, eletrônico, potência nominal 20 W, tensão nominal 127/220 V, ALTO, quantidade 2 lâmpadas, selo INMETRO garantia 2 anos, T10                                                                  ","Unid.",340,340,16.54,null,null,5623.5999999999995,null,5623.5999999999995]
[null,64,"BR0405814","30.90.30-26","Reator lâmpada fluorescente, instantânea, eletrônico, potência nominal 40 W, tensão nominal 127/220 V, ALTO, quantidade 2 lâmpadas, selo INMETRO garantia 2 anos, T10       ","Unid.",340,340,17.79,null,null,6048.5999999999995,null,6048.5999999999995]
[null,65,"BR0234935","30.90.30-26","Receptáculo de rabicho para lâmpada fluorescente","Unid.",1000,1000,1.57,null,null,1570,null,1570]
[]
[null,"Total Geral",{"$nulls":9},{"$f":"SUM(L13:L21)","v":45611.64},null,{"$f":"SUM(N13:N21)","v":45611.64},0,0,0,0,0,0,0,0]
[]
[]
[]
[{"$nulls":11},{"$f":"L22+'GRUPO 06 - Elétrico'!L21+'GRUPO 05 - Elétrico'!L16+'GRUPO 04 - Elétrico'!L20+'GRUPO 03 - Elétrico'!L21+'GRUPO 02 - Elétrico'!L24+'GRUPO 01 - Elétrico'!L35","v":262609.90666666662},null,{"$f":"SUM(N22:V22)","v":45611.64}]
{"$rows_empty":1048478}
[{"$nulls":4},"srpeletrico2019"]

{"sheet":"GRUPO 08 - Hidráulica","index":8,"n_rows":1048576,"n_cols":25,"rows_kept":1048576,"cut":false,"hidden":false,"merged":[[29,1,29,9],[10,5,10,6],[3,3,3,12],[4,3,4,11],[5,3,5,11],[6,3,6,11],[8,1,8,11],[9,1,9,11],[10,8,10,11]],"read":"row_number_cap"}
[]
[]
[]
[null,null,null,"MINISTÉRIO DO DESENVOLVIMENTO REGIONAL - MDR"]
[null,null,null,"COMPANIHA DE DESENVOLVIMENTO DOS VALES DO SÃO FRANCISCO E DO PARNAÍBA - CODEVASF"]
[null,null,null,"ÁREA DE GESTÃO ADMINISTRATIVA E DE SUPORTE LOGÍSTICO"]
[null,null,null,"Gerência de Patrimônio, Materiais e Serviços Auxiliares"]
[]
[null,"ANEXO II - GRUPO 08 - Hidráulica"]
[null,"Material de Manutenção Hidráulica"]
[null,"Unidade: CODEVASF",{"$nulls":6},"GRUPO 08 - Hidráulica"]
[null,"Item","Código CATMAT","Natureza Despesa","Descrição Sucinta","Unid.","Consumo  Anual Estimado","Consumo  Anual \nGeral","Preço unitário máximo","Preço unitário máximo\n2015","Preço unitário REGISTRADO 2016","Valor Global",null,"SEDE\nConsumo  Anual Estimado","1ª SR\nConsumo  Anual\nEstimado","2ª SR\nConsumo  Anual\nEstimado","3ª SR\nConsumo  Anual\nEstimado","4ª SR\nConsumo  Anual\nEstimado","5ª SR\nConsumo  Anual\nEstimado","6ª SR\nConsumo  Anual\nEstimado","7ª SR\nConsumo  Anual\nEstimado","8ª SR\nConsumo  Anual\nEstimado"]
[null,{"$f":"'GRUPO 07 - Elétrico'!B20+1","v":66},"BR0232601","30.90.30-26","Cola adesiva para conexão hidráulica, acetona/metiletilcetona / tolual e resina pvc, prazo de validade de 1 ano após fabricação, tubos e conexões de pvc\nMarca:  equivalente ou superior à Tigre.","Frasco 175g",20,{"$f":"SUM(G13:G13)","v":20},10.1,10,5.07,{"$f":"H13*I13","v":202},null,{"$f":"G13*I13","v":202}]
[null,{"$f":"B13+1","v":67},"BR0243136","30.90.30-24","Conexão em PVC , tipo joelho, de 20mm (1/2\")\nClasse \" A \"\nMarca: equivalente ou superior à Tigre.","UN",50,50,1.34,1.88,1.46,{"$f":"H14*I14","v":67},null,67]
[null,68,"BR0243137","30.90.30-24","Conexão em PVC , tipo joelho, de 25mm (3/4\")\nClasse \" A \"\nMarca: equivalente ou superior à Tigre.","UN",50,50,1.55,2.37,2.27,77.5,null,77.5]
[null,69,"BR0346838","30.90.30-24","Conexão em PVC , tipo T, de 20mm (1/2\")\nClasse \" A \"\nMarca: equivalente ou superior à Tigre.","UN",50,50,2.52,3.83,0.41,126,null,126]
[null,70,"BR0346837","30.90.30-24","Conexão em PVC , tipo T, de 25mm (3/4\")\nClasse \" A \"\nMarca: equivalente ou superior à Tigre.","UN",50,50,3.68,3.3,0.45,184,null,184]
[null,71,"BR0295430","30.90.30-24","Conexão em PVC, tipo curva raio longo, de 20mm (1/2\")\nClasse \" A \"\nMarca: equivalente ou superior à Tigre.","UN",50,50,1.22,2.6,2.6,61,null,61]
[null,72,"BR0290182","30.90.30-24","Conexão em PVC, tipo curva raio longo, de 25mm (3/4\")\nClasse \" A \"\nMarca: equivalente ou superior à Tigre.","UN",50,50,1.53,2.2999999999999998,2.2999999999999998,76.5,null,76.5]
[null,73,"BR0039144","30.90.30-24","Conexão em PVC, tipo luva de correr, de 20mm (1/2\")\nClasse \" A \"\nMarca: equivalente ou superior à Tigre.","UN",50,50,8.3000000000000007,8.99,8.49,415.00000000000006,null,415.00000000000006]
[null,74,"BR0227725","30.90.30-24","Conexão em PVC, tipo luva de correr, de 25mm (3/4\")\nClasse \" A \"\nMarca: equivalente ou superior à Tigre.","UN",50,50,2.81,12.9,6.99,140.5,null,140.5]
[null,75,"BR0301441","30.90.30-24","Engate hidráulico, aço inoxidável, 1/ 2 pol, 40 cm, instalações prediais água fria, com anel de vedação nas e xtremidades, rosca bsp ma","UN",50,50,2.35,27.33,15.44,117.5,null,117.5]
[null,76,"BR0022721","30.90.30-24","Fita veda rosca 18mm X 50 M\nEmbalagem Caixa de papelão\nMarca: equivalente ou superior à Tigre.","UN",50,50,{"$f":"(3.54+3.99+6.42)/3","v":4.6499999999999995},15,5.99,232.49999999999997,null,232.49999999999997]
[null,77,"BR0249993","30.90.30-24","Tubo PVC soldável, aplicação rede hidráulica e esgoto, cor branca, diâmetro nominal 100 mm, comprimento 6 mt, tipo leve, material pvc rígido \nClasse \" A \"\nMarca:  equivalente ou superior à Tigre.","UN",10,10,42.66,53.5,null,426.59999999999997,null,426.59999999999997]
[null,78,"BR0396867","30.90.30-24","Tubo PVC soldável, hidráulica, marrom, 20 mm (1/2\"), 6 m, 32 mm, 1,50 mm, 7,50 kgf/cm2 a 20°c\nClasse \" A \"\nMarca:  equivalente ou superior à Tigre.","UN",10,10,24.8,15.99,null,248,null,248]
[null,79,"BR0240480","30.90.30-24","Tubo PVC soldável, hidráulica, marrom, 25 mm (3/4\"), 6 m, 32 mm, 1,70 mm, 7,50 kgf/cm2 a 20°c\nClasse \" A \"\nMarca: equivalente ou superior à Tigre.","UN",10,10,10.68,16.7,null,106.8,null,106.8]
[null,80,"BR0214733","30.90.30-24","Tubo PVC soldável, hidráulica, marrom, 40 mm, 6 m, 40 mm, 2,40 mm, 7,50 kgf/cm2 a 20°c\nClasse \" A \"\nMarca: equivalente ou superior à Tigre.","UN",10,10,25.8,65.900000000000006,null,258,null,258]
[null,81,"BR0075469","30.90.30-24","Tubo PVC soldável, hidráulica, marrom, 50 mm, 6 m, 50 mm, 3 mm, 7,50 kgf/cm2 a 20°c\nClasse \" A \"\nMarca: equivalente ou superior à Tigre.","UN",10,10,11.66,69.900000000000006,null,116.6,null,116.6]
[]
[{"$nulls":11},{"$f":"SUM(L13:L29)","v":2855.5},null,{"$f":"SUM(N13:N29)","v":2855.5},{"$f":"SUM(O13:O29)","v":0},0,0,0,0,0,0,0]
[]
[]
[{"$nulls":13},{"$f":"SUM(N30:V30)","v":2855.5}]
{"$rows_empty":1048519}
[{"$nulls":13},"Grupos Materias Hidráulicos"]
[{"$nulls":13},"Grupo","SEDE","1ª SR","2ª SR","3ª SR","4ª SR","5ª SR","6ª SR","7ª SR","8ª SR"]
[{"$nulls":13},8,{"$f":"N30","v":2855.5},0,0,0,0,0,0,0,0,null,{"$f":"SUM(O1048555:W1048555)","v":2855.5}]
[{"$nulls":13},9,{"$f":"'GRUPO 09 - Hidráulica'!N22","v":7406.2},{"$f":"'GRUPO 09 - Hidráulica'!O22","v":0},{"$f":"'GRUPO 09 - Hidráulica'!P22","v":0},{"$f":"'GRUPO 09 - Hidráulica'!Q22","v":0},{"$f":"'GRUPO 09 - Hidráulica'!R22","v":0},{"$f":"'GRUPO 09 - Hidráulica'!S22","v":0},{"$f":"'GRUPO 09 - Hidráulica'!T22","v":0},{"$f":"'GRUPO 09 - Hidráulica'!U22","v":0},{"$f":"'GRUPO 09 - Hidráulica'!V22","v":0},null,{"$f":"SUM(O1048556:W1048556)","v":7406.2}]
[{"$nulls":13},10,{"$f":"'GRUPO 10 - Hidráulica'!N25","v":29275.366666666665},{"$f":"'GRUPO 10 - Hidráulica'!O25","v":0},{"$f":"'GRUPO 10 - Hidráulica'!P25","v":0},{"$f":"'GRUPO 10 - Hidráulica'!Q25","v":0},{"$f":"'GRUPO 10 - Hidráulica'!R25","v":0},{"$f":"'GRUPO 10 - Hidráulica'!S25","v":0},{"$f":"'GRUPO 10 - Hidráulica'!T25","v":0},{"$f":"'GRUPO 10 - Hidráulica'!U25","v":0},{"$f":"'GRUPO 10 - Hidráulica'!V25","v":0},null,29275.366666666665]
[{"$nulls":24},0]
[{"$nulls":24},0]
[{"$nulls":24},0]
[{"$nulls":24},0]
[]
[{"$nulls":13},"Total",{"$f":"SUM(O1048555:O1048562)","v":39537.066666666666},{"$f":"SUM(P1048555:P1048562)","v":0},0,0,0,0,0,0,0,null,{"$f":"SUM(Y1048555:Y1048562)","v":39537.066666666666}]
[]
[]
[]
[{"$nulls":14},{"$f":"SUM(O1048563:W1048563)","v":39537.066666666666}]
{"$rows_empty":8}
[{"$nulls":4},"srpeletrico2019"]

{"sheet":"GRUPO 09 - Hidráulica","index":9,"n_rows":1048576,"n_cols":22,"rows_kept":1048576,"cut":false,"hidden":false,"merged":[[10,1,10,11],[21,1,21,9],[11,5,11,6],[3,3,3,12],[4,3,4,11],[5,3,5,11],[6,3,6,11],[8,1,8,11],[9,1,9,11],[11,8,11,11]],"read":"row_number_cap"}
[]
[]
[]
[null,null,null,"MINISTÉRIO DO DESENVOLVIMENTO REGIONAL - MDR"]
[null,null,null,"COMPANIHA DE DESENVOLVIMENTO DOS VALES DO SÃO FRANCISCO E DO PARNAÍBA - CODEVASF"]
[null,null,null,"ÁREA DE GESTÃO ADMINISTRATIVA E DE SUPORTE LOGÍSTICO"]
[null,null,null,"Gerência de Patrimônio, Materiais e Serviços Auxiliares"]
[]
[null,"ANEXO II - GRUPO 09 - Hidráulica"]
[null,"Material de Manutenção Hidráulica"]
[]
[null,"Unidade: CODEVASF",{"$nulls":6},"GRUPO 09 - Hidráulica"]
[null,"Item","Código CATMAT","Natureza Despesa","Descrição Sucinta","Unid.","Consumo  Anual Estimado","Consumo  Anual \nGeral","Preço unitário máximo","Preço unitário máximo\n2015","Preço unitário REGISTRADO 2016","Valor Global",null,"SEDE\nConsumo  Anual Estimado","1ª SR\nConsumo  Anual\nEstimado","2ª SR\nConsumo  Anual\nEstimado","3ª SR\nConsumo  Anual\nEstimado","4ª SR\nConsumo  Anual\nEstimado","5ª SR\nConsumo  Anual\nEstimado","6ª SR\nConsumo  Anual\nEstimado","7ª SR\nConsumo  Anual\nEstimado","8ª SR\nConsumo  Anual\nEstimado"]
[null,{"$f":"'GRUPO 08 - Hidráulica'!B28+1","v":82},"BR0235936","30.90.30-26","Anticorrosivo, lubrificante/desengrax \nAnte/antioxidante/penetrante, spray \nMarca:  equivalente ou superior à WD.","UN",50,{"$f":"SUM(G14:G14)","v":50},26.1,45,20,{"$f":"H14*I14","v":1305},null,{"$f":"I14*G14","v":1305}]
[null,{"$f":"B14+1","v":83},"BR0231471",null,"Argamassa, cimento, calcário e aditivos, cinza, rejunte de placas cerâmicas em pisos e paredes \nSaco com 20 kg\nMarca:  equivalente ou superior à Quartzolit","Saco com 20 KG",10,10,18.5,null,null,{"$f":"H15*I15","v":185},null,185]
[null,84,"BR0304782","30.90.30-26","Ducha higiênica para banheiro, material: metal, comprimento: 1,20 m, diâmetro: 1/2 pol, acabamento: cromado. Marca/fabricante de referência: Deca ou Docol","Unid.",40,40,41.5,null,null,1660,null,1660]
[null,85,"BR0325013","30.90.30-24","Massa calafetar, resina sintética, 1, 70 g/cm3, água, vedação - EMBALAGEM 350,00 G                          ","Embalagem 350,00 G",25,25,8.5,14,9.89,212.5,null,212.5]
[null,86,"BR0030651","30.90.30-24","Removedor de tinta, galão de 5 (cinco) litros","GL",10,10,45,24,null,450,null,450]
[null,87,"BR0301252","5230.90.30-24","Reparo válvula hidráulica, metal cromado, encaixe, 1 1/4 pol, válvula descarga docol ri 484 ap, kit composto   anel roscável e vedação/trava metal, descarga, 00022800","UN",50,50,63,82,29,3150,null,3150]
[null,88,"BR0283959 ","30.90.30-24","Reparo válvula hidráulica, plástico, válvula descarga hydra-deca, acionador, 2520  ","UN",30,30,14.79,41.24,38.799999999999997,443.7,null,443.7]
[]
[null,"Total Geral",{"$nulls":9},{"$f":"SUM(L14:L21)","v":7406.2},null,{"$f":"SUM(N4:N21)","v":7406.2},0,0,0,0,0,0,0,0]
[]
[]
[]
[{"$nulls":13},{"$f":"SUM(N22:V22)","v":7406.2}]
{"$rows_empty":1048549}
[{"$nulls":4},"srpeletrico2019"]

{"sheet":"GRUPO 10 - Hidráulica","index":10,"n_rows":1048548,"n_cols":22,"rows_kept":1048548,"cut":false,"hidden":false,"merged":[[24,1,24,9],[10,5,10,6],[3,3,3,12],[4,3,4,11],[5,3,5,11],[6,3,6,11],[8,1,8,11],[9,1,9,11],[10,8,10,11]]}
[]
[]
[]
[null,null,null,"MINISTÉRIO DO DESENVOLVIMENTO REGIONAL - MDR"]
[null,null,null,"COMPANIHA DE DESENVOLVIMENTO DOS VALES DO SÃO FRANCISCO E DO PARNAÍBA - CODEVASF"]
[null,null,null,"ÁREA DE GESTÃO ADMINISTRATIVA E DE SUPORTE LOGÍSTICO"]
[null,null,null,"Gerência de Patrimônio, Materiais e Serviços Auxiliares"]
[]
[null,"ANEXO II - GRUPO 10 - Hidráulica"]
[null,"Material de Manutenção Hidráulica"]
[null,"Unidade: CODEVASF",{"$nulls":6},"GRUPO 10 - Hidráulica"]
[null,"Item","Código CATMAT","Natureza Despesa","Descrição Sucinta","Unid.","Consumo  Anual Estimado","Consumo  Anual \nGeral","Preço unitário máximo","Preço unitário máximo\n2015","Preço unitário REGISTRADO 2016","Valor Global",null,"SEDE\nConsumo  Anual Estimado","1ª SR\nConsumo  Anual\nEstimado","2ª SR\nConsumo  Anual\nEstimado","3ª SR\nConsumo  Anual\nEstimado","4ª SR\nConsumo  Anual\nEstimado","5ª SR\nConsumo  Anual\nEstimado","6ª SR\nConsumo  Anual\nEstimado","7ª SR\nConsumo  Anual\nEstimado","8ª SR\nConsumo  Anual\nEstimado"]
[null,{"$f":"'GRUPO 09 - Hidráulica'!B20+1","v":89},"BR0258317","33.90.30-24","Assento sanitário padrão, oval, almofadado, cor branco, tampo em prolipropileno","unid.",10,{"$f":"SUM(G13:G13)","v":10},20.7,null,null,{"$f":"H13*I13","v":207},null,{"$f":"I13*G13","v":207}]
[null,{"$f":"B13+1","v":90},"BR0038342","30.90.30-24","Chuveiro elétrico, ducha eletrônica 220V 7500W, mangueira e ducha manual e suporte para fixação.\nMarca: equivalente ou superior à Lorenzetti.","UN",5,5,50.8,84.9,77.33,254,null,254]
[null,{"$f":"B14+1","v":91},"BR0214147","30.90.30-24","Mangueira jardim, material PVC-traçado em náilon, diâmetro 1/2, espessura 2, pressão máxima 6 BAR., cor azul / laranja / transparente, rolo com 100,","Rolo\ncom 100 Metros",10,10,{"$f":"(219.09+244.85+239.9)/3","v":234.61333333333334},4.18,1.73,2346.1333333333332,null,2346.1333333333332]
[null,92,"BR0287999","30.90.30-24","Porta-papel higiênico, plástico abs,   20 cm, 27 cm, para rolo de 300 a 400 m  ","UN",150,150,21.89,28.8,28.79,3283.5,null,3283.5]
[null,93,"BR0330354","30.90.30-24","Porta-toalha, plástico, cinza/branco, em parede com buchas expansíveis, banheiro, para papel com 2 ou 3 dobras, 27,5 cm, 36,5 cm, 12 cm ","UN",150,150,31.82,46.9,46.65,4773,null,4773]
[null,94,"BR0150971","33.90.30-21","Refil para filtro em carvão, para purificador de água marca/modelo IBBL FR 600","unid.",160,160,72.5,null,null,{"$f":"H18*I18","v":11600},null,11600]
[null,95,"BR0340311","30.90.30-24","Refil, material carvão ativado, aplicação filtro SOFT BY EVEREST","UN",80,80,27.9,115,86.25,{"$f":"H19*I19","v":2232},null,2232]
[null,96,"BR0330355","30.90.30-24","Saboneteira, plástico abs, policarbonato transparente alta resistência, 22 cm, 13 cm, 900 ml, antifurto atra vés buchas expansivas, banheiro, sabonete líquido/válvula dosadora 0,75  ml por acio, branca, 9,50 cm  ","UN",30,30,18,29.3,29.3,540,null,540]
[null,97,"BR0253944 ","30.90.30-24","Torneira, aço inoxidável cromado, pi , 1/2 pol, bica móvel para bancada giratória,tipo pescoço de, bancada","UN",20,20,44.1,226.38,25.85,882,null,882]
[null,98,"BR0303691","30.90.30-24","torneira, aço inoxidável, alavanca, 1/2 pol, cafeteira elétrica universal  ","UN",20,20,{"$f":"(78+67+38.5)/3","v":61.166666666666664},70,69.900000000000006,1223.3333333333333,null,1223.3333333333333]
[null,99,"BR0239640 ","30.90.30-24","Torneira, material corpo metal, tipo lavatório, diâmetro 1/2 polegada, acabamento superficial cromado, características adicionais com temporizador                ","UN",30,30,64.48,395,52.66,1934.4,null,1934.4]
[]
[null,"Total Geral",{"$nulls":9},{"$f":"SUM(L13:L24)","v":29275.366666666665},null,{"$f":"SUM(N4:N24)","v":29275.366666666665},0,0,0,0,0,0,0,0]
[]
[]
[]
[{"$nulls":13},{"$f":"SUM(N25:V25)","v":29275.366666666665}]
{"$rows_empty":1048518}
[{"$nulls":4},"srpeletrico2019"]

{"sheet":"GRUPO 11 – Marcenaria","index":11,"n_rows":1048560,"n_cols":22,"rows_kept":1048560,"cut":false,"hidden":false,"merged":[[35,1,35,10],[3,3,3,11],[4,3,4,11],[5,3,5,11],[6,3,6,11],[8,1,8,11],[9,1,9,11],[10,8,10,11]]}
[]
[]
[]
[null,null,null,"MINISTÉRIO DA INTEGRAÇÃO NACIONAL - MI"]
[null,null,null,"COMPANIHA DE DESENVOLVIMENTO DOS VALES DO SÃO FRANCISCO E DO PARNAÍBA - CODEVASF"]
[null,null,null,"ÁREA DE GESTÃO ADMINISTRATIVA E DE SUPORTE LOGÍSTICO"]
[null,null,null,"Gerência de Patrimônio, Materiais e Serviços Auxiliares"]
[]
[null,"ANEXO II - GRUPO 11 – Marcenaria"]
[null,"Material de Manutenção de Marcenaria"]
[null,"Unidade: CODEVASF",{"$nulls":6},"GRUPO 11 – Marcenaria"]
[null,"Item","Código CATMAT","Natureza Despesa","Descrição Sucinta","Unid.","Consumo  Anual Estimado","Consumo  Anual \nGeral"," Painel de Preço 2019 ","Preço unitário máximo\n2015","Preço unitário REGISTRADO 2016","Valor Global",null,"SEDE\nConsumo  Anual Estimado","1ª SR\nConsumo  Anual\nEstimado","2ª SR\nConsumo  Anual\nEstimado","3ª SR\nConsumo  Anual\nEstimado","4ª SR\nConsumo  Anual\nEstimado","5ª SR\nConsumo  Anual\nEstimado","6ª SR\nConsumo  Anual\nEstimado","7ª SR\nConsumo  Anual\nEstimado","8ª SR\nConsumo  Anual\nEstimado"]
[null,{"$f":"'GRUPO 10 - Hidráulica'!B23+1","v":100},"BR0277412","30.90.30-26","Broca wídia, material corpo aço, material ponta wídia, tamanho longa, diâmetro 10 mm","UN",10,{"$f":"SUM(G13:G13)","v":10},7.23,4.5199999999999996,null,{"$f":"H13*I13","v":72.300000000000011},null,{"$f":"G13*I13","v":72.300000000000011}]
[null,{"$f":"B13+1","v":101},"BR0266375","30.90.30-26","Broca wídia, material corpo aço, material ponta wídia, tamanho média, diâmetro 6 mm, SDS PLUS","UN",10,10,3.47,5.21,1.5,{"$f":"H14*I14","v":34.700000000000003},null,34.700000000000003]
[null,{"$f":"B14+1","v":102},"BR0266376","30.90.30-26","Broca wídia, material corpo aço, material ponta wídia, tamanho média, diâmetro 8 mm ","UN",10,10,5,3.21,3.18,50,null,50]
[null,103,"BR0277410","30.90.30-26","Broca wídia, para concreto, material corpo aço, material ponta wídia, tamanho curta, diâmetro 4 mm                                         ","UN",50,50,1.52,3.1,2.62,76,null,76]
[null,104,"BR0227316",null,"Broca, aço rápido, 9/64 pol, médio, cilíndrica","UN",30,30,2.17,4.8,1.45,65.099999999999994,null,65.099999999999994]
[null,105,"BR0284259","30.90.30-26","Broca, material aço rápido, Comprimento total: 160mm, Comprimento útil: 100mm, aplicação martelete/concreto, componentes 7 brocas com diâmetro de 0,6mm; 0,8mm; 10mm; 12mm;, características adicionais tipo encaixe SDS\nUtilização em martelete Bosch GBH 2-24D","Jogo com 7 unid.",3,3,112.99,52,null,338.96999999999997,null,338.96999999999997]
[null,106,"BR0243298","30.90.30-26","Broca, material aço rápido, diâmetro S/4 mm, tamanho médio, tipo haste cilíndrica ","UN",20,20,2.52,3.64,1.58,50.4,null,50.4]
[null,107,"BR0242968","30.90.30-26","Broca, material aço rápido, diâmetro S/6 mm, tamanho médio, tipo haste cilíndrica","UN",20,20,2,6.5,2.39,40,null,40]
[null,108,"BR0359439","30.90.30-26","Bucha de nylon tamanho S/10","UN",1000,1000,0.03,0.6,0.04,30,null,30]
[null,109,"BR0318019","30.90.30-26","Bucha de nylon tamanho S/4","UN",1000,1000,0.11,0.2,0.09,110,null,110]
[null,110,"BR0249217","30.90.30-26","Bucha de nylon tamanho S/6","UN",2000,2000,0.03,0.8,0.02,60,null,60]
[null,111,"BR0249218","30.90.30-26","Bucha de nylon tamanho S/8","UN",2000,2000,0.3,0.5,0.02,600,null,600]
[null,112,"BR0288460","30.90.30-26","COLA, COMPOSIÇÃO:POLÍMERO DE ACETATO DE POLIVINILA E ADITIVOS, COR:BRANCA, APLICAÇÃO:MADEIRA, CARACTERÍSTICAS ADICIONAIS:LAVÁVEL E ATÓXICA, TIPO:LÍQUIDO","Frasco de 1 litro",10,10,9.3000000000000007,17.149999999999999,17.149999999999999,93,null,93]
[null,113,"BR0335061","30.90.30-24","Fita antiderrapante, filme de poliéster com mineral abrasivo, largura 50mm, cor da fita preta, par utilização em escada, rampa, corredor, 20 m, adesivo de borracha e linear, à prova d'água/resina adesiva\nCaixa com um rolo de 5 metros\nMarca: equivalente ou superior à Safety-Walk 3M.   ","Caixa com um rolo de 5 metros",20,20,17.38,77.099999999999994,28.35,347.59999999999997,null,347.59999999999997]
[null,114,"BR0010146","30.90.30-26","Mola para porta (tipo coimbra)","UN",25,25,87.78,1000,95.77,2194.5,null,2194.5]
[null,115,"BR0275057","30.90.30-26","Parafuso, aço galvanizado, cabeça sextavada, comprimento 50 mm, diâmetro 5mm, rosca soberba                                 ","UN",1000,1000,0.4,0.53,0.3,400,null,400]
[null,116,"BR0250703",null,"Prego com cabeça, aço temperado, liso, diamante, niquelado, 10 X 10","KG",4,4,{"$f":"(22.69+19.17+18.91)/3","v":20.256666666666664},null,null,81.026666666666657,null,81.026666666666657]
[null,117,"BR0317913","30.90.30-26","Prego com cabeça, aço, chata, liso, c omum, 13 x 18       ","KG",5,5,9,8.7899999999999991,8.4,45,null,45]
[null,118,"BR0330577","30.90.30-26","Prego com cabeça, ferro comum, chata,  liso, polido, 17 x 21","KG",5,5,10.09,8.32,7.47,50.45,null,50.45]
[null,119,"BR0330576","30.90.30-26","Prego com cabeça, ferro comum, chata, liso, polido, 15 x 15 ","KG",5,5,{"$f":"(11.9+12.06+11.21)/3","v":11.723333333333334},7.5,7.5,58.616666666666674,null,58.616666666666674]
[null,120,"BR0367332","33.90-30-17","Solda estanho, aspecto físico fio sólido, aplicação soldagem de componentes eletroeletrônico","Rolo 500G",2,2,65.42,null,null,130.84,null,130.84]
[null,121,"BR0226313","30.90.30-26","Verniz, acabamento brilhante, cor transparente, método aplicação pincel e pistola, aplicação interior e exterior, características adicionais secagem rápida   (GALÃO 3,60 L)                  ","GALÃO 3,60 L",4,4,64.84,54,54,259.36,null,259.36]
[]
[null,"Total Geral",{"$nulls":9},{"$f":"SUM(L13:L35)","v":5187.8633333333328},null,{"$f":"SUM(N13:N34)","v":5187.8633333333328},0,0,0,0,0,0,0,0]
[]
[{"$nulls":13},{"$f":"SUM(N36:V36)","v":5187.8633333333328}]
{"$rows_empty":1048521}
[{"$nulls":4},"srpeletrico2019"]

{"sheet":"GRUPO 12 - Ferramentas","index":12,"n_rows":1048553,"n_cols":26,"rows_kept":1048553,"cut":false,"hidden":false,"merged":[[24,1,24,10],[3,3,3,11],[4,3,4,11],[5,3,5,11],[6,3,6,11],[8,1,8,11],[9,1,9,11],[10,8,10,11]]}
[]
[]
[]
[null,null,null,"MINISTÉRIO DA INTEGRAÇÃO NACIONAL - MI"]
[null,null,null,"COMPANIHA DE DESENVOLVIMENTO DOS VALES DO SÃO FRANCISCO E DO PARNAÍBA - CODEVASF"]
[null,null,null,"ÁREA DE GESTÃO ADMINISTRATIVA E DE SUPORTE LOGÍSTICO"]
[null,null,null,"Gerência de Patrimônio, Materiais e Serviços Auxiliares"]
[]
[null,"ANEXO II - GRUPO 12 – Ferramentas"]
[null,"Material Ferramentas"]
[null,"Unidade: CODEVASF",{"$nulls":6},"GRUPO 12 – Ferramentas"]
[null,"Item","Código CATMAT","Natureza Despesa","Descrição Sucinta","Unid.","SEDE\nConsumo  Anual Estimado","Consumo  Anual \nGeral"," Painel de Preço 2019 ","Preço unitário máximo\n2015","Preço unitário REGISTRADO 2016","Valor Global",null,"SEDE\nConsumo  Anual Estimado","1ª SR\nConsumo  Anual\nEstimado","2ª SR\nConsumo  Anual\nEstimado","3ª SR\nConsumo  Anual\nEstimado","4ª SR\nConsumo  Anual\nEstimado","5ª SR\nConsumo  Anual\nEstimado","6ª SR\nConsumo  Anual\nEstimado","7ª SR\nConsumo  Anual\nEstimado","8ª SR\nConsumo  Anual\nEstimado",null,null,null,"srpeletrico2019"]
[null,{"$f":"'GRUPO 11 – Marcenaria'!B34+1","v":122},"BR0251453 ","30.90.30-26","Alicate universal, forjado em aço cromo vanádio, profissional, cabo isolado, corte temperado por indução, 200 mm,  corte arames duros e corda de piano\nMarca: equivalente ou superior à Gedore.                                ","UN",8,{"$f":"SUM(G13:G13)","v":8},{"$f":"(52.71+32.78+37.13)/3","v":40.873333333333335},31.8,25,{"$f":"H13*I13","v":326.98666666666668},null,{"$f":"I13*G13","v":326.98666666666668},{"$f":"#REF!*I13","v":{"$error":"#REF!"}},{"$f":"#REF!*I13","v":{"$error":"#REF!"}},{"$f":"#REF!*I13","v":{"$error":"#REF!"}},{"$f":"#REF!*I13","v":{"$error":"#REF!"}},{"$f":"#REF!*I13","v":{"$error":"#REF!"}},{"$f":"#REF!*I13","v":{"$error":"#REF!"}},{"$f":"#REF!*I13","v":{"$error":"#REF!"}},{"$f":"#REF!*I13","v":{"$error":"#REF!"}}]
[null,{"$f":"B13+1","v":123},"BR0311040","30.90.30-26","Arco serra, lâmina serra standard 12 polegadas, material cabo polipropileno, tratamento superficial niquelado, tamanho 12 polegadas, tipo regulável, características adicionais com cabo fechado e profundidade de corte de 90 mm.\nMarca:  equivalente ou superior à Starrett.","UN",10,10,18.34,26.15,14.45,{"$f":"H14*I14","v":183.4},null,183.4,{"$f":"#REF!*I14","v":{"$error":"#REF!"}},{"$f":"#REF!*I14","v":{"$error":"#REF!"}},{"$f":"#REF!*I14","v":{"$error":"#REF!"}},{"$f":"#REF!*I14","v":{"$error":"#REF!"}},{"$f":"#REF!*I14","v":{"$error":"#REF!"}},{"$f":"#REF!*I14","v":{"$error":"#REF!"}},{"$f":"#REF!*I14","v":{"$error":"#REF!"}},{"$f":"#REF!*I14","v":{"$error":"#REF!"}}]
[null,{"$f":"B14+1","v":124},"BR0034525 ","30.90.30-24","Disco diamantado, diamante, 105 mm,  0 mm, segmentado, mármore   ","UN",40,40,16.18,12.68,9.99,647.20000000000005,null,647.20000000000005,{"$f":"#REF!*I15","v":{"$error":"#REF!"}},{"$f":"#REF!*I15","v":{"$error":"#REF!"}},{"$f":"#REF!*I15","v":{"$error":"#REF!"}},{"$f":"#REF!*I15","v":{"$error":"#REF!"}},{"$f":"#REF!*I15","v":{"$error":"#REF!"}},{"$f":"#REF!*I15","v":{"$error":"#REF!"}},{"$f":"#REF!*I15","v":{"$error":"#REF!"}},{"$f":"#REF!*I15","v":{"$error":"#REF!"}}]
[null,125,"BR0066397","33.90.30-24","CHAVE ALLEN jogo 30 peças com estojo forjadas em aço cromo vanádio acabamento oxidado acompanha estojo organizador em plástico reforçado composto por 30 peças, com as seguintes medidas: 15 chaves em milímetros: 0,7; 0,9; 1,3; 1,5; 2,0; 2,5; 3,0; 4,0; 4,5; 5,0; 5,5; 6; 7; 8; 10 mm 15 chaves em polegadas: 0,028; 0,035; 0,050; 1/16; 5/64; 3/32; 7/64; 1/8; 9/64; 5/32; 3/16; 7/32; ¼; 5/16; 3 /8                                  ","Jogo com 30 peças",5,5,28.74,null,null,143.69999999999999,null,143.69999999999999,{"$f":"#REF!*I16","v":{"$error":"#REF!"}},{"$f":"#REF!*I16","v":{"$error":"#REF!"}},{"$f":"#REF!*I16","v":{"$error":"#REF!"}},{"$f":"#REF!*I16","v":{"$error":"#REF!"}},{"$f":"#REF!*I16","v":{"$error":"#REF!"}},{"$f":"#REF!*I16","v":{"$error":"#REF!"}},{"$f":"#REF!*I16","v":{"$error":"#REF!"}},{"$f":"#REF!*I16","v":{"$error":"#REF!"}}]
[null,126,"BR0266499 ","30.90.30-26","Jogo chaves fenda, aço, chata, 3x80, 3x100, 4x100, 4x125, 6x125, 6x150, 6x200 e 7 mm, polipropileno, niquelado, 8 unidades, características adicionais ponta imantada  ","Jogo com 8 peças",5,5,{"$f":"(63.88+87.99+99)/3","v":83.623333333333335},135,134.9,418.11666666666667,null,418.11666666666667,{"$f":"#REF!*I17","v":{"$error":"#REF!"}},{"$f":"#REF!*I17","v":{"$error":"#REF!"}},{"$f":"#REF!*I17","v":{"$error":"#REF!"}},{"$f":"#REF!*I17","v":{"$error":"#REF!"}},{"$f":"#REF!*I17","v":{"$error":"#REF!"}},{"$f":"#REF!*I17","v":{"$error":"#REF!"}},{"$f":"#REF!*I17","v":{"$error":"#REF!"}},{"$f":"#REF!*I17","v":{"$error":"#REF!"}}]
[null,127,"BR0286788","33.90.30-24","Jogo chaves phillips, aço, 3x60, 4,5x80, 4,5x100, 6x150, 8x200, 10x150 e 10x mm, polipropileno, niquelado, 7 unidades, características adicionais ponta imantada       ","Jogo com 7 peças",6,6,{"$f":"(72.24+69.55+49.72)/3","v":63.836666666666666},null,null,383.02,null,383.02,{"$f":"#REF!*I18","v":{"$error":"#REF!"}},{"$f":"#REF!*I18","v":{"$error":"#REF!"}},{"$f":"#REF!*I18","v":{"$error":"#REF!"}},{"$f":"#REF!*I18","v":{"$error":"#REF!"}},{"$f":"#REF!*I18","v":{"$error":"#REF!"}},{"$f":"#REF!*I18","v":{"$error":"#REF!"}},{"$f":"#REF!*I18","v":{"$error":"#REF!"}},{"$f":"#REF!*I18","v":{"$error":"#REF!"}}]
[null,128,"BR0286788",null,"Jogo chaves fenda, material haste aço, tipo ponta phillips, bitola 3X60, 4,5X80, 4,5X100, 6X150, 8X200, 10X150 E 10 MM, material cabo polipropileno, tratamento superficial ponta niquelado, quantidade peças 7 unidades, características adicionais ponta imantada","Jogo com 7 peças",6,6,{"$f":"(72.24+69.55+49.72)/3","v":63.836666666666666},null,null,383.02,null,383.02]
[null,129,"BR0302379","30.90.30-26","Lâmina serra manual, aço rápido, 32 dentes por polegada, 1/2\" pol, 300 mm    \nMarca: equivalente ou superior à Starret.                               ","UN",20,20,{"$f":"(6+5.19+7.54)/3","v":6.2433333333333332},5.55,4.88,124.86666666666666,null,124.86666666666666]
[null,130,"BR0053481","30.90.30-24","Régua de alumino com 2 metors, para pedreiro","UN",2,2,25.87,49.9,48.08,51.74,null,51.74]
[null,131,"BR429114","30.90.30-26","Trena de aço, 3/4'' de largura, 10m, graduação em milímetro e polegada, com trava de fixação, presilha para cinto e estojo em ABS                                                   ","UN",10,10,23.96,65.48,27.21,239.60000000000002,null,239.60000000000002]
[null,132,"BR0234033","30.90.30-26","Trena em fibra de vidro, estojo anatômico, com manivela dobrável, 50 (cinquenta) metros","UN",2,2,43.8,154.6,78.900000000000006,87.6,null,87.6]
[]
[null,"Total Geral",{"$nulls":9},{"$f":"SUM(L13:L24)","v":2989.2499999999995},null,{"$f":"SUM(N3:N24)","v":2989.2499999999995},{"$error":"#REF!"},{"$error":"#REF!"},{"$error":"#REF!"},{"$error":"#REF!"},{"$error":"#REF!"},{"$error":"#REF!"},{"$error":"#REF!"},{"$error":"#REF!"}]
[]
[{"$nulls":13},{"$f":"SUM(N25:V25)","v":{"$error":"#REF!"}}]
{"$rows_empty":1048525}
[{"$nulls":4},"srpeletrico2019"]

{"sheet":"Total Estimado","index":13,"n_rows":41,"n_cols":7,"rows_kept":41,"cut":false,"hidden":false,"merged":[[6,1,6,2],[5,3,5,4],[12,1,12,3],[39,1,39,3],[40,1,40,3],[30,1,30,4],[21,1,21,4],[15,1,15,3],[18,1,18,4],[36,3,36,4],[32,3,32,4],[34,3,34,4],[19,1,19,4],[33,3,33,4],[35,3,35,4]]}
[]
[null,null,"  MINISTÉRIO DO DESENVOLVIMENTO REGIONAL - MDR"]
[null,null," COMPANIHA DE DESENVOL. DOS VALES DO SÃO FRANCISCO E DO PARNAÍBA - CODEVASF"]
[null,null,"ÁREA DE GESTÃO ADMINISTRATIVA E DE SUPORTE LOGÍSTICO"]
[null,null,"Gerência de Patrimônio, Materiais e Serviços Auxiliares"]
[]
[null,"Unidades Responsáveis ",null,null,"Valores"]
[null,"AA/GSA/UPM","Por Itens","Materiais Elétricos e Hidráulicos",{"$f":"'Por Item - Elétrico'!$N$18","v":132740.70000000001},null,{"$f":"'Por Item - Elétrico'!N18","v":132740.70000000001}]
[null,null,"Grupos 01 a 07","Manutenção Elétrica",{"$f":"'GRUPO 01 - Elétrico'!$AC$1048563","v":262609.90666666668}]
[null,null,"Grupos 08 a 10","Manutenção Hidráulica",{"$f":"'GRUPO 08 - Hidráulica'!$O$1048563","v":39537.066666666666}]
[null,null,"Grupo 11","Marcenaria",{"$f":"'GRUPO 11 – Marcenaria'!$N$36","v":5187.8633333333328}]
[null,null,"Grupo 12","Ferramentas",{"$f":"'GRUPO 12 - Ferramentas'!$N$25","v":2989.2499999999995}]
[null,"  Valor Estimado ",null,null,{"$f":"SUM(E8:E12)","v":443064.78666666668},null,{"$f":"E13","v":443064.78666666668}]
[]
[]
[null,"  Valor Global Estimado"]
[]
[]
[{"$nulls":6},{"$f":"SUM(G8:G16)","v":575805.48666666669}]
[null,"Em conformidade com o Decreto Nº 7.892, de 23 de Janeiro de 2013,  Art.7º, inciso § 2o :"]
[]
[null,"“Na licitação para registro de preços não é necessário indicar a dotação orçamentária, que somente\nserá exigida para a formalização do contrato ou outro instrumento hábil.”"]
{"$rows_empty":8}
[null,"Os recursos correrão à conta das funcionais programáticas:"]
[]
[null,"PTRES"]
[null,"004088","04.122.0750.2000.0001","Administração da Unidade"]
[null,"004089","04.122.0757.2272.0001","GESTÃO E ADMINISTRAÇÃO DO PROGRAMA-GAP-NA (Gestão da Política de Integração Nacional)"]
[null,"021272","´04.121.0757.8892.0001","Manutenção do Sistema Nacional de Informações P/o Desenvolvimento Regional e Ordenamento Territorial-NA - Sistema mantido (unidade) - 1"]
[null,"025238","´04.122.0757.8785.0001","Gap-Gestão E Coordenação do Programa de Aceleração do Crescimento-Pac-Na (Gestão da Política da Integração Nacional)"]
[]
[]
[null,"Natureza da despesa: 33.90.30"]
[null,"Fonte de recursos: Próprias,Tesouro, GAP, PAC e Manutenção do Sistema Nacional                                      de Informações."]

{"sheet":"Total Estimado 2","index":14,"n_rows":23,"n_cols":5,"rows_kept":23,"cut":false,"hidden":false,"merged":[[9,1,9,2],[16,1,16,3],[20,1,20,4],[22,1,22,4],[2,2,2,4],[3,2,3,4],[4,2,4,4],[5,2,5,4],[8,3,8,4],[7,1,7,4]]}
[]
[]
[null,null,"MINISTÉRIO DA INTEGRAÇÃO NACIONAL - MI"]
[null,null," COMPANIHA DE DESENVOL. DOS VALES DO SÃO FRANCISCO E DO PARNAÍBA - CODEVASF"]
[null,null,"ÁREA DE GESTÃO ADMINISTRATIVA E DE SUPORTE LOGÍSTICO"]
[null,null,"Gerência de Patrimônio, Materiais e Serviços Auxiliares"]
[]
[null,"ANEXO II - PLANILHA DE QUANTITATIVO E PREÇOS"]
[]
[null,"Composição",null,"Setor Responsável","Valores"]
[null,"Por Itens","Materiais Elétricos e Hidráulicos","Sede e SR´s",{"$f":"'Por Item - Elétrico'!$L$18","v":132740.70000000001}]
[null,"Grupos 01 a 07","Manutenção Elétrica","Sede e SR´s",{"$f":"'GRUPO 01 - Elétrico'!L35+'GRUPO 02 - Elétrico'!L24+'GRUPO 03 - Elétrico'!L21+'GRUPO 04 - Elétrico'!L20+'GRUPO 05 - Elétrico'!L16+'GRUPO 06 - Elétrico'!L21+'GRUPO 07 - Elétrico'!L22","v":262609.90666666668}]
[null,"Grupos 08 a 10","Manutenção Hidráulica","Sede e SR´s",{"$f":"'GRUPO 08 - Hidráulica'!$O$1048567","v":39537.066666666666}]
[null,"Grupo 11","Marcenaria","Sede e SR´s",{"$f":"'GRUPO 11 – Marcenaria'!$L$36","v":5187.8633333333328}]
[null,"Grupo 12","Ferramentas","Sede e SR´s",{"$f":"'GRUPO 12 - Ferramentas'!$L$25","v":2989.2499999999995}]
[]
[null,"Valor Global Estimado",null,null,{"$f":"SUM(E11:E16)","v":443064.78666666668}]
[]
[]
[]
[null,"Em conformidade com o Decreto Nº 7.892, de 23 de Janeiro de 2013,  Art.7º, inciso § 2o :"]
[]
[null,"“Na licitação para registro de preços não é necessário indicar a dotação orçamentária, que somente\nserá exigida para a formalização do contrato ou outro instrumento hábil.”"]